bitfinex/quotes_ETHUSD_20240719
["timestamp","ask_amount","ask_price","bid_price","bid_amount"]
[1721415719096,2.3121,3511.1,3509.9,2.3676]
[1721415719300,3.428113,3511.1,3510.0,0.31003798]
[1721415719533,3.0,3511.0,3510.0,0.31003798]
[1721415720311,3.0,3511.0,3509.8,2.523]
[1721415720539,3.0,3511.4,3510.2,2.523]
[1721415720954,2.43,3511.9,3510.2,5.37182]
[1721415720955,2.84762,3511.7,3510.2,5.37182]
[1721415721157,2.43,3511.6,3510.2,2.84882]
[1721415721639,2.523,3512.2,3510.2,2.84882]
[1721415721640,2.43,3512.1,3510.4,2.84861]
[1721415721845,2.43,3512.1,3510.5,0.54285688]
[1721415721999,0.55,3512.0,3510.5,0.54285688]
[1721415722205,0.55,3512.0,3509.9,2.3395]
[1721415722206,2.84792,3511.4,3509.9,2.3395]
[1721415722427,2.8477,3511.6,3509.9,5.18858]
[1721415722697,2.84796,3511.3,3509.9,2.3395]
[1721415722968,2.4104,3511.4,3509.9,2.3395]
[1721415722969,5.84802,3511.2,3509.9,2.3395]
[1721415723453,5.84802,3511.2,3509.7,3.13533]
[1721415723614,5.84802,3511.2,3509.8,0.841491]
[1721415724327,2.84819,3511.0,3509.8,0.841491]
[1721415724529,2.84819,3511.0,3509.6,0.2861]
[1721415725052,2.2578,3511.1,3509.6,0.2861]
[1721415725204,5.10596,3511.1,3509.6,0.2861]
[1721415725405,3.0,3511.0,3509.6,0.2861]
[1721415725635,3.0,3511.0,3509.5,2.8494]
[1721415725636,3.0,3511.0,3509.5,0.2861]
[1721415725836,2.2578,3511.1,3509.7,5.53468]
[1721415726154,2.2578,3511.1,3509.8,3.687548]
[1721415726305,2.2578,3511.1,3509.9,2.84907]
[1721415726509,2.2589,3511.6,3510.6,2.8485]
[1721415726716,2.84707,3512.4,3510.6,5.3715]
[1721415726717,5.1062,3512.1,3510.6,5.3715]
[1721415726915,2.2589,3512.1,3510.7,1.061951]
[1721415727417,2.2589,3512.1,3510.2,5.37182]
[1721415727418,2.84739,3512.0,3510.2,2.84882]
[1721415727672,4.7819,3512.1,3510.1,2.3994]
[1721415727673,2.84762,3511.7,3510.1,2.3994]
[1721415727835,2.3208,3511.2,3509.8,0.838408]
[1721415728022,2.3208,3511.2,3509.8,3.687568]
[1721415728222,2.3208,3511.2,3509.8,0.838408]
[1721415728431,5.16889,3511.2,3509.9,0.6300648]
[1721415728630,3.0,3511.1,3509.9,0.6300648]
[1721415729035,0.0211308,3511.1,3510.0,0.05696934]
[1721415729238,0.0211308,3511.1,3510.7,2.4239]
[1721415729438,2.2601,3512.2,3510.9,2.84821]
[1721415729775,2.30973505,3512.2,3511.0,0.53290631]
[1721415730780,5.15697505,3512.2,3510.7,2.4239]
[1721415730982,5.15697505,3512.2,3510.6,2.84851]
[1721415730983,3.0,3512.1,3510.5,2.84858]
[1721415731160,2.30973505,3512.2,3510.3,2.84875]
[1721415731671,0.55,3512.1,3510.1,5.2688]
[1721415731874,3.71807651,3512.0,3510.4,2.84864]
[1721415732170,3.0,3511.9,3510.4,2.84864]
[1721415732669,3.0,3511.9,3510.3,1.51818]
[1721415732825,0.55,3512.1,3510.7,2.84842]
[1721415732826,3.55,3512.1,3510.7,2.84842]
[1721415733030,3.55,3512.1,3510.8,0.40753164]
[1721415733231,2.4863,3511.9,3510.3,1.51818]
[1721415733674,2.4863,3511.9,3510.4,2.84862]
[1721415733985,5.33376,3511.9,3510.3,1.51818]
[1721415734187,5.84755,3511.8,3510.3,1.51818]
[1721415734469,2.4863,3511.9,3510.3,1.51818]
[1721415734682,1.173103,3511.8,3510.4,2.84867]
[1721415734844,4.173103,3511.8,3510.4,2.84867]
[1721415735231,3.0,3511.8,3510.1,2.2603]
[1721415735569,5.33376,3511.9,3510.4,2.84866]
[1721415735784,5.33376,3511.9,3510.1,5.10919]
[1721415735785,2.4137,3511.8,3510.1,2.84891]
[1721415735958,0.826123,3511.7,3510.2,0.284891]
[1721415736157,0.55,3511.6,3510.2,0.284891]
[1721415736333,0.55,3511.6,3510.2,3.133721]
[1721415736529,0.55,3511.6,3510.3,2.84875]
[1721415737061,0.55,3511.7,3510.2,3.133721]
[1721415737261,1.715879,3511.7,3510.3,0.3133721]
[1721415737467,5.26141,3511.6,3510.3,0.3133721]
[1721415737648,5.26148,3511.5,3510.0,2.84899]
[1721415737857,3.0,3511.4,3510.0,2.84899]
[1721415738117,3.0,3511.4,3509.9,2.84906]
[1721415738465,3.0,3511.4,3509.6,2.84931]
[1721415738466,2.4137,3511.1,3509.6,2.84931]
[1721415738648,2.4137,3511.0,3509.6,2.84931]
[1721415738995,0.526184,3510.9,3509.7,0.61454954]
[1721415739368,0.526184,3510.9,3509.7,3.46378954]
[1721415739672,5.4137,3511.0,3509.7,3.46378954]
[1721415739888,2.4137,3511.0,3509.8,2.84911]
[1721415740563,2.4137,3511.0,3509.7,0.61454954]
[1721415740747,2.84841,3510.8,3509.4,0.4467054]
[1721415741147,5.26194,3511.0,3509.4,0.4467054]
[1721415741390,3.55,3510.9,3509.4,0.4467054]
[1721415741564,3.0,3510.9,3509.4,0.4467054]
[1721415741762,2.3337,3510.8,3509.5,2.8494]
[1721415742100,0.818189,3510.7,3509.5,4.20477107]
[1721415742384,0.818189,3510.7,3509.5,1.35537107]
[1721415742890,0.818189,3510.7,3509.5,2.84939]
[1721415743583,2.3337,3510.8,3509.8,2.84914]
[1721415743787,2.3337,3510.8,3510.2,2.84876]
[1721415744189,2.267,3511.6,3510.3,2.84875]
[1721415744389,2.267,3511.6,3510.2,2.84876]
[1721415744993,2.267,3511.6,3510.0,2.84897]
[1721415745151,2.4139,3511.5,3510.1,3.13945326]
[1721415745356,2.4139,3511.5,3510.2,2.84883]
[1721415745800,8.26169,3511.5,3510.1,0.29059326]
[1721415745967,2.365,3511.4,3510.1,0.29059326]
[1721415746170,5.365,3511.4,3510.1,0.29059326]
[1721415746401,6.86232259,3511.4,3510.2,0.31395333]
[1721415746559,9.71020259,3511.4,3510.2,0.31395333]
[1721415747120,2.365,3510.9,3509.4,1.04503493]
[1721415747403,2.365,3510.8,3509.4,0.4467054]
[1721415747557,2.365,3510.8,3509.4,3.2961754]
[1721415747952,2.365,3510.8,3509.5,2.8494]
[1721415748294,2.365,3510.8,3509.6,0.32961054]
[1721415748494,2.365,3510.8,3509.6,3.17892054]
[1721415748704,2.365,3510.8,3509.7,2.84924]
[1721415748999,2.365,3510.8,3509.9,2.84904]
[1721415749205,2.365,3510.8,3510.0,2.84899]
[1721415749505,2.365,3510.8,3510.1,0.569803]
[1721415749710,2.365,3510.8,3509.9,2.84904]
[1721415749877,2.365,3510.8,3509.7,2.84919]
[1721415750070,2.41465182,3510.8,3509.7,2.84919]
[1721415751578,2.41465182,3510.8,3509.6,0.32961054]
[1721415751765,0.24146518,3510.7,3509.6,0.32961054]
[1721415752419,0.24146518,3510.7,3509.4,3.2961154]
[1721415752591,2.388,3510.6,3509.5,0.99073844]
[1721415752904,2.388,3510.6,3509.4,3.2961154]
[1721415753318,2.388,3510.6,3509.5,0.99073632]
[1721415753495,5.23653,3510.6,3509.6,0.99073632]
[1721415753677,0.5527647,3510.5,3509.6,0.99073632]
[1721415754030,2.4177,3510.4,3509.4,0.4467054]
[1721415754317,2.4177,3510.3,3509.2,0.0180753]
[1721415754480,2.84878,3510.3,3509.2,0.0180753]
[1721415754688,2.4177,3510.2,3509.2,0.0180753]
[1721415755116,2.4177,3510.2,3509.2,0.36469178]
[1721415755466,2.4177,3510.2,3509.2,0.0180753]
[1721415756514,2.4177,3510.2,3509.3,0.99081346]
[1721415756720,2.4177,3510.2,3509.2,0.0180753]
[1721415757092,2.4177,3510.2,3509.3,0.99082152]
[1721415757296,2.4177,3510.2,3509.2,0.0180753]
[1721415757490,2.4177,3510.2,3509.3,0.99082796]
[1721415757491,0.826639,3510.1,3509.3,0.99082796]
[1721415757699,2.4177,3510.2,3509.4,0.99081805]
[1721415757880,2.4177,3510.2,3509.5,0.99081805]
[1721415758093,2.4177,3510.2,3509.3,0.59832953]
[1721415758094,2.4177,3510.2,3509.3,3.44787953]
[1721415758294,2.4177,3510.2,3509.4,2.47686162]
[1721415758518,2.4177,3510.2,3509.5,1.38982073]
[1721415758739,2.4177,3510.2,3509.6,2.47684354]
[1721415758878,2.4177,3510.2,3509.5,0.39907608]
[1721415759199,2.4177,3510.2,3509.6,2.47687706]
[1721415759378,2.528,3511.3,3509.4,0.59832953]
[1721415759579,2.2632,3510.7,3509.9,2.84906]
[1721415759810,2.2632,3510.7,3510.0,2.47669297]
[1721415760027,2.2632,3510.7,3510.1,1.48586226]
[1721415760324,2.2632,3510.7,3510.2,2.68468236]
[1721415760646,2.2632,3510.7,3510.3,0.99050527]
[1721415760847,2.2632,3510.7,3510.2,0.20841918]
[1721415762822,2.2632,3510.7,3509.7,4.04589907]
[1721415762823,2.2632,3510.7,3509.9,0.59832953]
[1721415763038,2.2632,3510.7,3510.0,2.47647402]
[1721415763208,2.2632,3510.7,3510.1,0.99058961]
[1721415763405,2.2632,3510.7,3509.9,0.59832953]
[1721415763625,2.2632,3510.7,3509.7,0.59832953]
[1721415763827,2.2632,3510.7,3509.8,3.19601361]
[1721415764050,2.2632,3510.7,3509.8,0.71944938]
[1721415764209,2.2632,3510.7,3509.9,0.99063452]
[1721415764409,2.2632,3510.7,3509.8,0.71944938]
[1721415764835,2.2632,3510.7,3509.6,3.44762953]
[1721415765047,2.2632,3510.7,3509.7,2.4766036]
[1721415765343,2.2632,3510.7,3509.8,0.99064144]
[1721415765545,2.2632,3510.7,3509.6,2.8493]
[1721415765757,2.2632,3510.7,3509.7,3.10631143]
[1721415765924,2.2632,3510.7,3509.8,0.99064059]
[1721415766123,2.2632,3510.7,3509.7,0.62970995]
[1721415766625,2.2632,3510.7,3509.7,3.47892995]
[1721415769567,2.2632,3510.7,3509.7,0.62970995]
[1721415769742,2.2632,3510.7,3510.3,2.84874]
[1721415769943,2.2632,3510.7,3510.4,0.569758]
[1721415770150,0.04964555,3511.3,3510.6,2.84849]
[1721415770151,2.3848,3511.2,3510.6,2.84849]
[1721415771234,2.3848,3511.2,3510.4,2.84861]
[1721415771839,2.3848,3511.2,3510.3,2.84871]
[1721415772143,2.3848,3511.2,3510.4,2.84863]
[1721415772352,2.3848,3511.2,3510.5,2.84858]
[1721415772530,2.3848,3511.2,3510.6,3.133298]
[1721415772730,2.3848,3511.2,3510.6,0.284858]
[1721415772943,2.3848,3511.2,3510.6,3.133368]
[1721415773856,2.3848,3511.2,3510.6,0.284858]
[1721415776383,2.3848,3511.2,3510.4,2.84865]
[1721415776754,2.3848,3511.2,3510.3,2.84871]
[1721415776968,2.3848,3511.2,3510.4,2.84867]
[1721415777774,2.3848,3511.2,3510.4,2.8486]
[1721415778097,2.3848,3511.2,3510.4,2.84861]
[1721415778252,2.3848,3511.2,3510.5,0.284861]
[1721415778456,2.3848,3511.2,3510.5,3.133401]
[1721415780048,2.3848,3511.2,3510.5,0.284861]
[1721415780242,2.3848,3511.2,3510.4,2.84866]
[1721415780792,2.3848,3511.2,3510.4,2.84861]
[1721415781141,2.3848,3511.2,3510.4,2.8486]
[1721415781743,2.3848,3511.2,3510.4,5.69722]
[1721415781939,2.3848,3511.2,3510.4,2.84863]
[1721415782172,2.3848,3511.2,3510.5,0.284863]
[1721415782997,0.04964134,3511.7,3510.8,2.528]
[1721415782998,2.3179,3511.6,3510.8,2.528]
[1721415783206,2.3179,3511.6,3510.9,2.84821]
[1721415783690,2.3179,3511.6,3511.0,2.84818]
[1721415785294,2.3179,3511.6,3511.1,2.84809]
[1721415785902,2.3179,3511.6,3510.9,2.84825]
[1721415786199,2.3179,3511.6,3511.0,2.84816]
[1721415787462,2.3179,3511.6,3511.1,2.84808]
[1721415787663,2.3179,3511.6,3511.3,2.84789]
[1721415787893,2.3179,3511.6,3511.4,0.56959]
[1721415788467,2.3179,3511.6,3511.3,2.84789]
[1721415789190,2.491,3512.3,3511.3,2.84789]
[1721415789904,2.491,3512.3,3511.1,2.84803]
[1721415790392,2.491,3512.3,3510.9,2.84823]
[1721415790903,2.335,3512.2,3510.9,2.84821]
[1721415793707,2.335,3512.0,3510.8,2.84827]
[1721415793908,2.335,3512.0,3510.5,0.284863]
[1721415793909,2.335,3512.0,3510.6,2.84847]
[1721415794094,0.82316994,3512.1,3510.6,2.84847]
[1721415794095,2.4461,3511.8,3510.6,2.84847]
[1721415794886,2.4461,3511.8,3510.8,2.84832]
[1721415795131,2.4461,3511.8,3510.5,0.284863]
[1721415795300,2.4461,3511.8,3511.1,2.8481]
[1721415795749,2.4461,3511.8,3511.0,2.84817]
[1721415795925,2.4461,3511.8,3511.1,0.284817]
[1721415796234,2.4461,3511.8,3510.8,2.84829]
[1721415796389,2.4461,3511.8,3510.7,2.84842]
[1721415796840,2.4461,3511.8,3510.8,2.84834]
[1721415797325,2.4461,3511.8,3510.9,5.69645]
[1721415797541,2.4461,3511.8,3510.9,2.8482]
[1721415797835,2.4461,3511.8,3511.1,2.84804]
[1721415798017,2.4461,3511.8,3511.3,2.84794]
[1721415798188,2.4461,3511.8,3511.1,5.69607]
[1721415798391,2.4461,3511.8,3511.2,2.84797]
[1721415798733,2.4461,3511.8,3511.5,2.84775]
[1721415799039,2.47,3513.0,3511.7,2.84762]
[1721415799331,2.47,3513.0,3511.6,0.284775]
[1721415799332,2.47,3513.0,3511.6,2.8477]
[1721415799526,2.47,3513.0,3511.5,2.84775]
[1721415799685,2.47,3513.0,3511.5,2.84774]
[1721415800337,2.47,3513.0,3512.0,5.37538]
[1721415800489,2.47,3513.0,3512.2,2.84716]
[1721415800696,2.47,3513.0,3512.3,2.84708]
[1721415801301,2.47,3513.0,3512.2,2.84716]
[1721415802048,2.47,3513.0,3512.1,3.384828]
[1721415802530,2.47,3513.0,3512.3,2.84708]
[1721415802836,2.47,3513.0,3512.4,0.6231908]
[1721415803033,2.47,3513.0,3512.2,2.8472]
[1721415803203,2.47,3513.0,3512.4,5.37502]
[1721415803716,2.47,3513.0,3512.1,0.537538]
[1721415804011,2.47,3513.0,3511.6,3.0]
[1721415804332,2.47,3513.0,3511.7,2.84757]
[1721415804542,2.47,3513.0,3512.3,2.84708]
[1721415804834,2.47,3513.0,3512.0,2.84736]
[1721415805339,2.47,3513.0,3512.3,2.84712]
[1721415805637,2.47,3513.0,3512.3,3.416568]
[1721415805835,2.47,3513.0,3511.7,2.84757]
[1721415806243,2.17,3513.0,3511.9,2.8474]
[1721415806444,2.17,3513.0,3511.3,7.4868464]
[1721415806445,2.17,3513.0,3512.0,2.84732]
[1721415807000,2.17,3513.0,3512.1,2.84729]
[1721415807207,2.17,3513.0,3512.3,2.84713]
[1721415807406,2.17,3513.0,3512.4,0.569442]
[1721415808039,2.17,3513.0,3512.4,3.416482]
[1721415808749,2.17,3513.0,3512.4,0.569442]
[1721415808910,2.17,3513.0,3512.1,2.84724]
[1721415809411,2.17,3513.0,3512.3,2.84713]
[1721415809955,2.17,3513.0,3512.4,2.84704]
[1721415811223,2.17,3513.0,3512.7,2.84681]
[1721415814155,2.17,3513.0,3512.8,2.8467]
[1721415814323,2.17,3513.0,3512.9,0.569351]
[1721415814656,2.17,3513.0,3512.8,2.8467]
[1721415815855,0.2713759,3514.0,3512.9,2.84661]
[1721415816063,0.2713759,3514.0,3513.5,2.8461]
[1721415816244,0.2713759,3514.0,3513.6,2.84607]
[1721415816431,2.3831,3513.9,3513.4,2.84618]
[1721415817336,2.3831,3513.9,3513.4,3.415428]
[1721415817759,2.3831,3513.9,3513.5,2.84616]
[1721415818343,2.3831,3513.9,3512.9,2.84661]
[1721415818344,2.3831,3513.9,3513.6,2.84608]
[1721415818661,2.3831,3513.9,3513.6,2.84605]
[1721415819032,0.2713759,3514.0,3513.6,2.84605]
[1721415819229,0.2713759,3514.0,3513.7,0.569228]
[1721415819833,0.2713759,3514.0,3513.8,2.84587]
[1721415820873,0.2713759,3514.0,3513.9,5.74859117]
[1721415821171,0.2713759,3514.0,3513.9,5.69168]
[1721415822491,2.2822,3514.7,3514.1,2.84562]
[1721415823471,2.2822,3514.7,3513.5,2.84612]
[1721415823768,2.2822,3514.7,3513.7,2.84593]
[1721415824067,2.2822,3514.7,3514.2,2.84554]
[1721415824270,2.2822,3514.7,3514.2,2.84555]
[1721415824872,2.2822,3514.7,3513.8,2.84585]
[1721415825049,2.2822,3514.7,3513.9,2.84582]
[1721415825246,5.37269,3515.4,3513.4,7.39]
[1721415825247,2.4286,3514.4,3513.4,7.39]
[1721415825453,2.4286,3514.3,3513.4,7.39]
[1721415825989,2.4286,3514.2,3513.4,7.39]
[1721415826284,2.4286,3514.1,3513.4,7.39]
[1721415826493,2.8457,3514.1,3512.5,10.23696]
[1721415826784,2.4286,3513.9,3512.6,3.870576]
[1721415827209,2.4286,3513.9,3512.6,1.023696]
[1721415827334,5.27445,3513.9,3512.6,1.023696]
[1721415827538,5.27445,3513.9,3512.2,2.84715]
[1721415827539,2.4457,3513.6,3512.2,2.84715]
[1721415827739,2.4457,3513.6,3512.3,2.84712]
[1721415827934,2.4457,3513.6,3512.1,2.84723]
[1721415828193,5.29179,3513.6,3512.1,2.84724]
[1721415828477,5.29179,3513.6,3512.0,2.84734]
[1721415828478,2.4457,3513.6,3512.2,2.8472]
[1721415828702,2.4457,3513.5,3511.8,10.2375]
[1721415828978,2.84659,3513.0,3511.8,7.39]
[1721415829178,2.84659,3513.0,3511.3,15.1079]
[1721415829179,2.4457,3512.9,3511.5,2.84772]
[1721415829365,2.4457,3512.9,3511.6,2.84769]
[1721415829588,2.4457,3512.9,3511.7,0.284769]
[1721415831905,2.4457,3512.9,3512.1,2.84729]
[1721415832075,2.4457,3512.9,3512.3,2.84705]
[1721415832274,2.4457,3512.9,3512.4,2.84704]
[1721415832578,2.4457,3512.9,3511.8,0.05693896]
[1721415832579,2.4457,3512.9,3512.5,2.84691]
[1721415832784,2.4457,3512.9,3512.6,3.131571]
[1721415833460,2.4359,3513.4,3512.7,2.8468]
[1721415833662,2.4359,3513.4,3512.6,0.284691]
[1721415833892,2.4359,3513.4,3512.9,2.84659]
[1721415834677,2.4359,3513.4,3512.7,2.84677]
[1721415834678,2.4359,3513.4,3513.0,2.84656]
[1721415834881,2.4359,3513.4,3513.1,0.569328]
[1721415835474,2.4359,3513.4,3512.6,0.284691]
[1721415835660,2.4359,3513.4,3512.7,2.8468]
[1721415837702,2.4359,3513.4,3512.1,2.84728]
[1721415837915,2.4359,3513.4,3512.0,2.84736]
[1721415838198,2.4359,3513.4,3512.3,2.84708]
[1721415839402,2.4359,3513.4,3511.9,7.39]
[1721415839403,2.4359,3513.4,3512.2,0.05693129]
[1721415839623,2.4359,3513.4,3512.2,0.05692625]
[1721415839828,2.4359,3513.4,3512.8,2.84668]
[1721415840037,2.4359,3513.4,3512.9,2.84664]
[1721415840325,2.4359,3513.4,3513.1,2.84643]
[1721415841086,2.4359,3513.4,3513.2,2.84635]
[1721415841533,2.4359,3513.4,3513.3,2.84632]
[1721415841829,5.473,3514.4,3513.3,3.415587]
[1721415842132,5.473,3514.4,3512.7,0.05692087]
[1721415842133,5.473,3514.4,3513.4,2.84624]
[1721415842487,5.473,3514.4,3513.2,2.84634]
[1721415843691,5.473,3514.4,3513.2,2.79634]
[1721415843887,5.473,3514.4,3513.3,2.84632]
[1721415844504,5.473,3514.4,3513.1,2.84646]
[1721415844505,2.473,3514.4,3513.4,2.84624]
[1721415844692,2.473,3514.4,3513.5,0.284624]
[1721415845936,5.473,3514.4,3513.4,2.84623]
[1721415846095,2.473,3514.4,3513.4,2.84623]
[1721415846291,5.473,3514.4,3513.4,2.84623]
[1721415846806,5.473,3514.4,3513.3,2.84631]
[1721415847422,5.473,3514.4,3513.1,0.05691529]
[1721415847624,5.473,3514.4,3513.7,2.84592]
[1721415847937,5.473,3514.4,3513.5,2.84611]
[1721415848543,5.473,3514.4,3513.6,2.84603]
[1721415849105,5.473,3514.4,3513.4,2.84617]
[1721415849668,5.473,3514.4,3513.1,3.49664348]
[1721415849940,0.5625253,3514.3,3513.3,2.84624]
[1721415850148,0.5625253,3514.3,3513.1,0.65019348]
[1721415850350,2.3221,3514.2,3512.9,2.84662]
[1721415850558,2.3221,3514.1,3512.9,2.84662]
[1721415850720,5.3221,3514.1,3512.9,2.84662]
[1721415851047,5.3221,3514.1,3513.2,2.8464]
[1721415851217,2.3221,3514.1,3513.2,2.8464]
[1721415851419,2.4529,3514.1,3512.8,1.48449408]
[1721415851628,2.4529,3514.1,3513.6,2.84607]
[1721415851944,2.4529,3514.1,3513.3,2.84632]
[1721415852108,2.4529,3514.1,3513.1,2.84646]
[1721415852719,2.4529,3514.1,3513.0,2.84654]
[1721415852951,0.24529,3514.0,3513.0,2.84654]
[1721415853823,0.24529,3514.0,3513.1,2.84648]
[1721415854434,0.24529,3514.0,3512.9,2.8466]
[1721415854640,0.24529,3514.0,3513.0,2.84655]
[1721415854840,2.4529,3514.1,3513.1,2.84648]
[1721415855056,2.4529,3514.1,3512.9,2.84664]
[1721415855231,2.4529,3514.1,3513.0,2.84656]
[1721415856959,2.4529,3514.1,3512.9,2.84664]
[1721415857159,2.4529,3514.1,3512.7,1.48448775]
[1721415857160,2.4529,3514.1,3513.3,2.84625]
[1721415857457,2.4529,3514.1,3513.5,2.8461]
[1721415858319,2.4529,3514.1,3513.6,2.84606]
[1721415858556,2.4529,3514.1,3513.9,2.84576]
[1721415858859,0.152253,3514.5,3514.0,2.84568]
[1721415859154,0.152253,3514.5,3514.1,0.569158]
[1721415859535,0.152253,3514.5,3514.1,3.414818]
[1721415860933,0.152253,3514.5,3514.4,2.84543]
[1721415861134,0.152253,3514.5,3514.4,5.69086]
[1721415862657,0.152253,3514.5,3514.3,2.84549]
[1721415862819,0.152253,3514.5,3514.4,3.129979]
[1721415865067,0.152253,3514.5,3514.4,5.975409]
[1721415865266,1e-08,3514.5,3514.4,8.820839]
[1721415867642,2.4529,3515.4,3515.2,2.84476]
[1721415867876,2.4529,3515.4,3515.3,0.56897]
[1721415868339,2.4529,3515.4,3515.3,3.41367]
[1721415869287,3.0,3516.0,3515.3,0.56897]
[1721415869288,2.3239,3515.9,3515.3,0.56897]
[1721415869441,2.3239,3515.9,3514.7,2.84517]
[1721415869646,2.3239,3515.9,3515.4,2.84462]
[1721415871105,2.3239,3515.9,3515.6,2.84446]
[1721415871594,2.3239,3515.9,3515.4,2.84462]
[1721415871799,2.3239,3515.9,3515.5,3.413457]
[1721415872261,2.3239,3515.9,3515.5,0.568937]
[1721415872469,2.3239,3515.9,3515.4,2.84462]
[1721415873250,2.3239,3515.9,3515.6,2.84441]
[1721415873469,2.3239,3515.9,3515.4,5.68914]
[1721415873813,2.3239,3515.9,3515.5,2.84454]
[1721415873953,2.3239,3515.9,3515.4,2.84455]
[1721415874153,2.3239,3515.9,3515.5,3.128945]
[1721415876689,2.3239,3515.9,3515.5,0.284455]
[1721415876989,2.3549,3516.3,3515.8,5.68848]
[1721415877199,2.3549,3516.3,3515.8,2.84423]
[1721415877706,2.3549,3516.3,3515.6,2.84439]
[1721415879560,2.3549,3516.3,3515.7,2.84437]
[1721415880010,2.3549,3516.3,3515.8,2.84425]
[1721415880318,2.3549,3516.3,3515.9,0.568868]
[1721415880457,2.3549,3516.3,3515.6,2.84443]
[1721415881363,2.3549,3516.3,3515.2,2.84476]
[1721415881664,2.3549,3516.3,3515.2,2.84472]
[1721415881909,2.3549,3516.3,3515.4,2.84461]
[1721415882283,2.3549,3516.3,3515.3,2.8447]
[1721415882597,2.3549,3516.3,3515.4,0.568941]
[1721415883686,2.3549,3516.3,3515.3,2.84466]
[1721415884864,2.3549,3516.3,3515.2,2.84478]
[1721415885065,2.3549,3516.3,3515.2,2.84477]
[1721415885289,2.3549,3516.3,3515.3,2.8447]
[1721415885609,2.3549,3516.3,3515.0,10.23491]
[1721415885813,3.0,3516.7,3515.1,1.17184074]
[1721415885814,2.2857,3516.1,3515.1,1.17184074]
[1721415886099,2.2857,3516.1,3514.9,2.84502]
[1721415887067,2.2857,3516.1,3514.7,2.84512]
[1721415887378,2.302,3516.0,3514.7,2.84512]
[1721415887807,2.8439,3516.3,3514.5,10.23532]
[1721415887808,2.302,3515.8,3514.5,10.23532]
[1721415888105,2.302,3515.8,3514.6,4.1818059]
[1721415888422,2.302,3515.8,3514.7,2.84515]
[1721415888808,2.3316,3515.7,3514.6,1.3365359]
[1721415889106,2.3316,3515.6,3514.5,7.39]
[1721415889312,5.17608,3515.6,3514.5,7.39]
[1721415889519,2.3316,3515.5,3514.5,7.39]
[1721415889797,2.3316,3515.5,3514.4,0.284549]
[1721415891302,2.3316,3515.5,3514.2,2.84559]
[1721415891677,2.3542,3515.3,3514.2,2.84559]
[1721415891877,2.3542,3515.3,3514.3,2.8455]
[1721415892747,2.3542,3515.3,3514.0,10.2357]
[1721415892908,2.3542,3515.3,3514.5,2.84527]
[1721415893235,2.3542,3515.3,3514.7,2.84512]
[1721415894211,2.3542,3515.3,3514.7,5.69026]
[1721415894401,2.3542,3515.3,3514.7,2.84512]
[1721415895133,2.3542,3515.3,3514.6,0.284527]
[1721415895134,2.3542,3515.3,3514.8,0.05689324]
[1721415895350,2.3542,3515.3,3515.0,2.84487]
[1721415895503,2.3542,3515.3,3515.1,0.568997]
[1721415895708,2.3542,3515.3,3515.1,3.413847]
[1721415895942,2.3542,3515.3,3515.1,2.84485]
[1721415896152,2.3542,3515.3,3514.9,2.84502]
[1721415896326,2.4543,3515.8,3515.2,2.84471]
[1721415896645,2.4543,3515.8,3515.3,2.84465]
[1721415896948,2.4543,3515.8,3515.4,0.568951]
[1721415898109,2.4543,3515.8,3515.3,2.84463]
[1721415898110,2.4543,3515.8,3514.9,2.84497]
[1721415898757,2.4543,3515.8,3514.6,0.284527]
[1721415898966,2.4543,3515.8,3514.6,3.284527]
[1721415899252,2.4543,3515.8,3514.6,6.129797]
[1721415900024,2.4543,3515.8,3514.6,3.284527]
[1721415900374,2.984144,3515.7,3514.7,2.84518]
[1721415900862,2.4543,3515.7,3514.7,2.84512]
[1721415901074,2.4543,3515.7,3514.9,2.84502]
[1721415901422,2.4543,3515.7,3515.2,2.84473]
[1721415901624,2.4543,3515.7,3515.2,2.84471]
[1721415901964,2.4543,3515.7,3515.4,2.84461]
[1721415902264,2.4543,3515.7,3515.5,0.568932]
[1721415903137,2.4543,3515.7,3514.9,10.23497]
[1721415903337,2.4543,3515.7,3514.9,7.39]
[1721415904425,2.4543,3515.7,3515.0,5.6894]
[1721415906270,2.3951,3515.6,3515.0,5.6894]
[1721415909769,2.2783,3515.5,3515.0,5.6894]
[1721415910068,2.2783,3515.3,3514.5,7.39]
[1721415910371,3.0725,3515.4,3514.0,7.39]
[1721415910372,2.84479,3515.2,3514.0,7.39]
[1721415910671,2.4856,3515.1,3514.0,7.39]
[1721415911015,2.4856,3515.1,3513.3,0.59832953]
[1721415911016,2.84532,3514.6,3513.3,0.59832953]
[1721415911173,2.4856,3514.4,3513.0,3.87798231]
[1721415911344,2.4856,3514.4,3513.1,2.84643]
[1721415911677,2.4856,3514.4,3513.4,2.84624]
[1721415911832,2.4856,3514.4,3513.0,1.03144231]
[1721415911833,2.4856,3514.4,3513.1,3.12632953]
[1721415912040,2.4856,3514.4,3513.4,2.84619]
[1721415912267,2.4856,3514.4,3513.5,0.87645672]
[1721415912440,2.4856,3514.4,3513.1,2.84647]
[1721415914058,2.4856,3514.4,3513.0,0.43311278]
[1721415914372,2.4856,3514.4,3513.1,2.84648]
[1721415914552,2.4856,3514.4,3513.2,2.84633]
[1721415914740,2.4856,3514.4,3513.0,0.43311278]
[1721415914741,2.4856,3514.4,3513.7,2.84598]
[1721415915045,2.4856,3514.4,3513.8,0.284598]
[1721415915850,2.4856,3514.4,3513.8,3.130458]